[Event "SixDays Budapest IM-B 10-2024"]
[Site "Budapest"]
[Date "2024.10.03"]
[Round "6.1"]
[White "Bhagat Kush"]
[Black "Gatineau, Yovann"]
[Result "1/2-1/2"]
[ECO "C45"]
[WhiteElo "2245"]
[BlackElo "2400"]
[Annotator "TA"]
[PlyCount "184"]
[EventDate "2024.09.24"]
[EventType "tourn"]
[EventCountry "HUN"]
[SourceTitle "playchess.com"]
[Source "ChessBase"]
[SourceQuality "1"]
[TimeControl "5400+30"]

{[%evp 14,183,-17,-21,15,8,0,17,22,18,25,26,36,27,57,50,44,20,34,39,50,45,55,47,53,21,61,53,54,0,14,-15,-25,-24,0,-22,0,-14,15,-14,-13,-18,-23,-21,-8,-18,-11,-20,-8,-2,0,-8,-8,-13,-19,-59,0,0,0,0,0,0,0,0,0,0,0,0,0,0,0,0,0,0,0,0,0,0,0,0,0,0,0,0,0,0,0,-8,0,-265,-262,-246,0,-146,0,0,0,0,0,0,0,0,0,-170,0,0,0,0,0,0,0,0,0,-395,-381,-351,-342,-324,0,0,0,-201,-227,-5501,-1547,-5481,-835,-828,-671,-5377,-1340,-12833,-10839,-7532,-374,-12299,-5069,-12848,-29950,-29957,-12711,-29958,-29945,-29948,-11461,-11288,-10862,-7355,-7018,-29973,-29974,-29970,0,-12843,0,-29949,-5409,-29977,-29978,-29978,0,0,0,-29978,-29979,-29980,-29981,-29981,0,0,0,0]} 1. e4 e5 {[%emt 0:03:17]} 2. Nf3 {[%emt 0:08:28]} Nc6 {[%emt 0:00:07]} 3. d4 {[%emt 0:01:19]} exd4 {[%emt 0:00:45]} 4. Nxd4 {[%emt 0:00:08]} Nf6 {[%emt 0:00:38][%cal Bg8f6,Bf6d5,Bd5b6][%mdl 32]} 5. Nxc6 {[%emt 0:00:22]} bxc6 {[%emt 0:00:05]} 6. e5 {[%emt 0:00:11]} Qe7 {[%emt 0:00:49]} 7. Qe2 {[%emt 0:00:07]} Nd5 {[%emt 0:00:06]} 8. h4 {[%emt 0:00:28]} d6 {[%emt 0:01:43]} 9. c4 {[%emt 0:00:26]} Nb6 {[%emt 0:00:34]} 10. exd6 {[%emt 0:00:32]} Qxe2+ {[%emt 0:05:50]} 11. Bxe2 {[%emt 0:00:05]} Bxd6 {[%emt 0:00:25][%cal Bf8d6,Bd6e5,Be5f6][%mdl 32]} 12. Nc3 {[%emt 0:11:37]} Be6 {[%emt 0:03:18]} 13. b3 {[%emt 0:03:54]} Be5 {[%emt 0:19:31]} 14. Bb2 {[%emt 0:16:07]} O-O-O {[%emt 0:01:19]} 15. Rd1 {[%emt 0:01:12]} Rhe8 {[%emt 0:30:09][%cal Ob6c4]} 16. O-O {[%emt 0:06:21]} Bf6 {[%emt 0:03:24]} 17. Bf3 {[%emt 0:09:51]} Kb7 {[%emt 0:00:25]} 18. Rxd8 {[%emt 0:10:15]} Rxd8 {[%emt 0:00:11]} 19. Rd1 {[%emt 0:00:19] Repels Rd2} Re8 {[%emt 0:04:51][%cal Ob6d7]} 20. Re1 {[%emt 0:04:28]} Rd8 {[%emt 0:04:19]} 21. Rd1 {[%emt 0:00:37] Against Rd3} (21. Re2 $14) 21... Rd6 {[%emt 0:04:03]} 22. c5 {[%emt 0:16:46]} Rxd1+ {[%emt 0:00:07]} 23. Nxd1 {[%emt 0:00:08]} Bxb2 {[%emt 0:00:27]} 24. Nxb2 $11 {[%emt 0:00:06][%mdl 4096] Endgame. KBN-KBN} Nd7 {[%emt 0:01:07]} 25. Nd3 {[%emt 0:00:45]} a5 {[%emt 0:03:15]} 26. Kf1 {[%emt 0:04:24]} Bf5 {[%emt 0:01:20]} 27. Ke2 {[%emt 0:00:37]} Bxd3+ {[%emt 0:01:30]} 28. Kxd3 {[%emt 0:00:02]} Nxc5+ {[%emt 0:00:08] KB-KN} 29. Kc4 {[%emt 0:00:54]} Kb6 {[%emt 0:00:13]} 30. g4 {[%emt 0:01:43]} Nd7 {[%emt 0:02:32]} 31. Be2 {[%emt 0:00:02]} h6 {[%emt 0:01:26]} 32. f4 {[%emt 0:01:36]} Nf8 {[%emt 0:01:52] White should prevent ...Ng6.} 33. Bd3 {[%emt 0:00:53]} Ne6 {[%emt 0:01:07]} 34. f5 {[%emt 0:00:01]} Nf4 {[%emt 0:00:25]} (34... Nc5 $15) 35. Be4 {[%emt 0:00:17]} f6 {[%emt 0:02:47]} 36. Bf3 {[%emt 0:01:32]} c5 {[%emt 0:00:45]} 37. Be4 {[%emt 0:00:25]} Ne2 {[%emt 0:00:57]} 38. Bd3 {[%emt 0:00:36]} Nf4 {[%emt 0:02:27]} 39. Be4 $1 {[%emt 0:00:55]} c6 {[%emt 0:01:11]} 40. Bf3 {[%emt 0:00:12]} g5 {[%emt 0:00:34]} 41. h5 {[%emt 0:01:34]} Nh3 {[%emt 0:00:05]} 42. Be2 {[%emt 0:00:09]} Ng1 {[%emt 0:00:35]} 43. Bd1 {[%emt 0:00:05]} Nh3 {[%emt 0:00:10]} 44. Be2 {[%emt 0:00:20]} Nf4 {[%emt 0:00:47]} (44... Nf2 $5 45. Bf3 $8 Kc7 46. Kxc5 Nd3+ 47. Kd4 Ne5 $11) 45. Bf3 {[%emt 0:00:02]} Kc7 {[%emt 0:00:31] Threatens to win with ...Kd6.} 46. Kxc5 {[%emt 0:00:36][%cal Of3e4] And now Be4! would win.} Nd3+ {[%emt 0:00:03]} 47. Kd4 {[%emt 0:00:03]} Nc1 {[%emt 0:00:26][%cal Oc7d6]} 48. Kc5 {[%emt 0:00:03]} Nd3+ {[%emt 0:01:11]} 49. Kd4 {[%emt 0:00:02]} Ne5 {[%emt 0:00:22]} 50. Be2 {[%emt 0:00:08]} Kd6 {[%emt 0:00:08]} 51. a3 $2 {[%emt 0:03:34][%mdl 8192]} (51. Bd1 $11) 51... c5+ $19 {[%emt 0:00:11]} 52. Ke4 {[%emt 0:00:03]} Nc6 $2 {[%emt 0:00:18]} (52... Kc6 $19 {White must now prevent ...Kd6.} 53. Ke3 Kd5) 53. Bf1 {[%emt 0:00:33]} (53. Kd3 $11 {remains equal.}) 53... Ne7 {[%emt 0:00:38]} (53... Nd4 $1 $17 {[%cal Rd4b3]} 54. b4 Nb3 (54... axb4 55. axb4 Nb3 56. bxc5+ Nxc5+ 57. Ke3 $11) 55. bxc5+ Kxc5 (55... Nxc5+ 56. Kd4 $11)) 54. Bc4 $11 {[%emt 0:00:08]} Nc8 {[%emt 0:00:24]} 55. Bb5 {[%emt 0:01:10]} Nb6 {[%emt 0:00:21]} 56. a4 {[%emt 0:00:44]} Nd5 {[%emt 0:00:17]} 57. Ba6 {[%emt 0:00:32]} Nb4 {[%emt 0:01:12]} 58. Bb5 {[%emt 0:00:16]} (58. Bb7 $1 $11) 58... Nd5 $2 {[%emt 0:00:40]} (58... Nc2 $1 $19 {[%cal Rc2d4] Hoping for ...Nd4.} 59. Kd3 Nd4) 59. Ba6 {[%emt 0:00:02]} Nb6 {[%emt 0:00:35] ...Nd7 is the strong threat.} 60. Bb5 {[%emt 0:00:07]} Kc7 {[%emt 0:00:32]} 61. Ba6 {[%emt 0:00:12]} Kc6 {[%emt 0:00:17]} (61... Kd6 $5) 62. Bb5+ {[%emt 0:00:04]} Kd6 {[%emt 0:00:05]} 63. Bf1 $2 {[%emt 0:00:26][%mdl 8192]} (63. Be2 $11 {and White stays safe.}) 63... Nd7 $19 {[%emt 0:00:00]} 64. Bb5 {[%emt 0:00:13] White wants to mate with Bxd7.} Ne5 {[%emt 0:00:00]} 65. Be2 {[%emt 0:00:04]} Kc6 {[%emt 0:00:10] aiming for ...Kd6.} 66. Bb5+ $1 {[%emt 0:00:12]} Kd6 {[%emt 0:01:02]} 67. Be2 {[%emt 0:00:34]} c4 $1 {[%emt 0:02:09]} 68. bxc4 $2 {[%emt 0:01:03]} (68. Bxc4 Nxg4 69. Kd4) 68... Kc5 {[%emt 0:00:10]} 69. Ke3 {[%emt 0:00:22]} Nd7 {[%emt 0:00:30]} (69... Nxc4+ $142 70. Ke4 Nb2 (70... Nd6+ $2 71. Ke3 $19)) 70. Kd3 {[%emt 0:01:19] [#]} Nb6 $1 {[%emt 0:00:07][%csl LRa4,LRc4]} 71. Bd1 {[%emt 0:00:04]} Nxc4 {[%emt 0:00:08]} (71... Kb4 $142 72. Kd4 Nxc4) 72. Ke4 {[%emt 0:01:32]} Ne5 {[%emt 0:00:42]} 73. Be2 {[%emt 0:00:12]} Nc6 $2 {[%emt 0:00:29]} (73... Nd7 {...Nb6 would now be deadly.} 74. Bf1 Nb6) 74. Bb5 $2 {[%emt 0:00:34]} (74. Bd1) 74... Ne7 {[%emt 0:00:23]} 75. Bd3 {[%emt 0:00:27]} Nd5 {[%emt 0:00:44]} 76. Bc2 {[%emt 0:00:20]} Nb6 {[%emt 0:00:17]} (76... Nc3+ $142 77. Kd3 Nd5 (77... Kb4 78. Kd4 $19) 78. Bb3 Nb6 79. Kc3 Nd7 80. Bc2 Ne5 81. Bd1 Kd5 82. Be2 Ke4 83. Bf1 Nxg4 84. Bg2+ Kxf5 85. Bh1 Ne5 86. Kd4 Kf4 87. Kc5 f5 88. Bd5 g4 89. Bg2 g3 90. Bh3 Kf3 91. Kd5 Nf7 92. Kd4 g2 93. Kd5 g1=Q (93... g1=R $2 94. Bxf5 Rg5 95. Ke6 $19) 94. Bxf5 Qb6 (94... Qd1+ 95. Kc6 Qd6+ 96. Kb7 Qd5+ 97. Kb8 Qc6 98. Be6 Qxe6 99. Kb7 Qd6 100. Kc8 Qc6+ 101. Kb8 Nd8 102. Ka7 Qb7#) 95. Bg6 Qd6+ 96. Kc4 Ne5+ 97. Kb5 Qb4+ 98. Ka6 Nd7 (98... Qxa4 99. Kb6 Qb4+ 100. Kc7 Qc5+ 101. Kd8 Qd6+ 102. Ke8 Kf4 103. Bf5 Kg5 104. Bh3 Kf6 105. Bg2 Qe7#) 99. Be4+ Kxe4 100. Ka7 Qb8+ 101. Ka6 Qb6#) 77. Bb3 {[%emt 0:01:01]} Kb4 $1 {[%emt 0:00:27][%csl LRa4,LRb3]} 78. Bc2 {[%emt 0:00:03]} Nxa4 {[%emt 0:01:39]} 79. Kd5 {[%emt 0:00:02]} Nc5 {[%emt 0:00:17]} 80. Kd6 {[%emt 0:00:16]} Kc3 $1 {[%emt 0:00:45]} (80... a4 81. Bxa4 Nxa4 82. Ke6 $11) 81. Bd1 {[%emt 0:00:37]} Kd4 {[%emt 0:00:22]} 82. Bc2 {[%emt 0:00:16]} Kc3 {[%emt 0:00:33]} (82... a4 $142 83. Bb1 Ne4+ 84. Ke6 Ke3 (84... a3 $2 85. Ba2 $19) 85. Kf7 a3 86. Ba2 Kf4 87. Kg7 Kxg4 88. Bb3 Kxh5 (88... Kxf5 89. Kxh6 g4 90. Kg7 g3 91. h6 g2 92. h7 g1=Q+ 93. Kf8 Qc5+ 94. Kg8 Qc8+ 95. Kg7 Qc7+ 96. Kh6 Qg3 97. h8=N Qxb3 98. Ng6 Ng5 99. Kh5 Qd1+ 100. Kh6 Qh1+ 101. Nh4+ Qxh4+ 102. Kg7 Qh7+ 103. Kf8 Qf7#) 89. Bf7+ Kh4 90. Kg6 g4 91. Bd5 Nc3 92. Bg2 a2 93. Kxf6 a1=Q (93... a1=B $2 94. Kg6 $19) 94. Ke7 Qa7+ 95. Kf6 Qb6+ 96. Ke5 Kg5 97. Bc6 Qc5+ (97... Qxc6 98. Kd4 Kxf5 99. Ke3 Ne4 100. Ke2 Qc2+ 101. Ke1 Qf2+ 102. Kd1 Qd2#) 98. Ke6 Qxc6+ 99. Ke7 Nd5+ (99... Kxf5 100. Kd8 Qb7 101. Ke8 Ke6 102. Kf8 Qf7#) (99... g3 100. Kd8 g2 101. Ke7 g1=Q 102. Kf8 Qa7 103. Kg8 Qe8#) 100. Kf7 Qc7+ (100... Kxf5 101. Kg7 Qc7+ 102. Kxh6 Qe7 103. Kh5 Qh7#) (100... g3 101. Kg8 Qf6 102. Kh7 Qf8 103. f6 Nxf6#) 101. Kg8 Kf6 102. Kh8 Qg7#) 83. Bd1 $1 {[%emt 0:00:02]} Kd4 {[%emt 0:00:47]} (83... Nb3 $19 84. Ke6 a4) 84. Bc2 $1 {[%emt 0:00:02]} a4 {[%emt 0:00:23]} 85. Bxa4 {[%emt 0:00:07]} Nxa4 {[%emt 0:00:05] KN-K3P} 86. Ke6 {[%emt 0:00:02]} Nc5+ $2 {[%emt 0:01:00]} (86... Ke4 87. Kxf6 Kf4 88. Kg6 Kxg4 89. f6 Nc5 90. Kxh6 Nd7 91. f7 Kh4 92. Kg6 Ne5+ 93. Kg7 Nxf7 (93... Kxh5 $2 {loses.} 94. f8=Q $18) 94. Kxf7 Kxh5 95. Kf8 g4 96. Kf7 g3 97. Ke6 g2 98. Kd5 g1=Q (98... g1=B 99. Ke6 $11) 99. Kc4 Qb6 100. Kc3 Qc5+ 101. Kb3 Kg4 102. Ka2 Kf4 103. Kb3 Ke4 104. Ka4 Kd3 105. Kb3 Qb6+ 106. Ka3 Kc3 107. Ka4 Qb4#) 87. Kxf6 $11 {[%emt 0:00:02]} Kd5 {[%emt 0:00:32] ( -> ...Kd6)} (87... Ke3 $5 88. Ke7 $8 Ne4 $11) 88. Kg6 $2 {[%emt 0:01:30][%mdl 8192]} (88. Ke7 $11) 88... Ke5 {[%emt 0:00:25]} 89. f6 {[%emt 0:00:21] [#]} Nd7 $1 {[%emt 0:00:26]} 90. f7 {[%emt 0:00:07]} Ke6 $2 {[%emt 0:00:23]} (90... Kf4 {mates} 91. Kg7 Kxg4 92. Kxh6 Kh4 93. Kg6 Ne5+ 94. Kg7 Nxf7 (94... Kxh5 $2 {too greedy.} 95. f8=Q $18) 95. Kxf7 Kxh5 96. Kg7 g4 97. Kf7 g3 98. Ke6 Kg5 99. Kf7 Kf4 100. Kf8 g2 101. Ke7 g1=Q (101... g1=R {gets mated.} 102. Kd6 Rd1+ 103. Kc6 Ke5 104. Kc5 Rc1+ 105. Kb4 Kd5 106. Kb3 Kd4 107. Kb4 Rb1+ 108. Ka4 Kc3 109. Ka5 Kc4 110. Ka6 Kc5 111. Ka7 Kc6 112. Ka8 Kc7 113. Ka7 Ra1#) 102. Kd6 Qd4+ 103. Kc7 Qc5+ 104. Kb8 Ke5 105. Kb7 Qb5+ 106. Kc7 Ke6 107. Kc8 Kd6 108. Kd8 Qd7#) 91. Kxh6 {[%emt 0:01:22]} Kf6 {[%emt 0:00:05]} 92. f8=Q+ {[%emt 0:00:05]} Nxf8 {[%emt 0:00:05] Weighted Error Value: White=0.26 (precise) /Black=0.17 (very precise) .  Loses game:     	White=4     	---        Missed win:     	---       	Black=2      Mistake:       	White=3     	Black=2      Inaccurate:     	White=5     	Black=4      OK:         	White=25    	Black=22     Best:        	White=6     	Black=7      Strong:       	White=3     	Black=1} 1/2-1/2

[Event "SixDays Budapest IM-B 10-2024"]
[Site "Budapest"]
[Date "2024.10.03"]
[Round "6.2"]
[White "Kao, Jamison Edrich"]
[Black "Kalosha, Zhiulien Oleksii"]
[Result "1/2-1/2"]
[ECO "C48"]
[WhiteElo "2125"]
[BlackElo "2232"]
[Annotator "RC"]
[PlyCount "53"]
[EventDate "2024.09.24"]
[EventType "tourn"]
[EventCountry "HUN"]
[SourceTitle "playchess.com"]
[Source "ChessBase"]
[SourceQuality "1"]
[TimeControl "5400+30"]

1. e4 {[%emt 0:00:03]} e5 {[%emt 0:03:05]} 2. Nf3 {[%emt 0:00:08]} Nc6 {[%emt 0:00:11]} 3. Nc3 {[%emt 0:00:17]} Nf6 {[%emt 0:00:17]} 4. Bb5 {[%emt 0:00:08]} Bd6 {[%emt 0:01:25]} 5. a3 {[%emt 0:04:51]} a6 {[%emt 0:01:43]} 6. Bc4 {[%emt 0:00:23]} Bc5 {[%emt 0:00:41]} 7. O-O {[%emt 0:01:26]} d6 {[%emt 0:01:17]} 8. h3 {[%emt 0:02:11]} O-O {[%emt 0:02:04]} 9. d3 {[%emt 0:01:09]} Be6 {[%emt 0:01:30]} 10. Nd5 {[%emt 0:09:56]} h6 {[%emt 0:01:49]} 11. Be3 {[%emt 0:10:32]} Nd4 {[%emt 0:16:54]} 12. c3 {[%emt 0:06:33]} Nxf3+ {[%emt 0:04:09]} 13. Qxf3 {[%emt 0:00:03]} Bxd5 {[%emt 0:01:29]} 14. Bxd5 {[%emt 0:03:51]} Bxe3 {[%emt 0:00:54]} 15. Qxe3 {[%emt 0:00:07]} Nxd5 {[%emt 0:00:09]} 16. exd5 {[%emt 0:00:03]} f5 {[%emt 0:01:41]} 17. f4 {[%emt 0:03:17]} Qf6 {[%emt 0:03:35]} 18. Rae1 {[%emt 0:01:50]} Rae8 {[%emt 0:08:52]} 19. Re2 {[%emt 0:12:58]} Qf7 {[%emt 0:08:50]} 20. Qf3 {[%emt 0:00:57]} exf4 {[%emt 0:01:33]} 21. Rxe8 {[%emt 0:00:05]} Qxe8 {[%emt 0:00:11]} 22. Qxf4 {[%emt 0:01:00]} Qe2 {[%emt 0:00:21]} 23. Qc4 {[%emt 0:04:38]} Rf7 {[%emt 0:11:26]} 24. Qb3 {[%emt 0:05:44]} b5 {[%emt 0:06:11]} 25. c4 {[%emt 0:01:40]} f4 {[%emt 0:06:49]} 26. cxb5 {[%emt 0:02:47]} axb5 {[%emt 0:03:48]} 27. Qxb5 {[%emt 0:04:05]} 1/2-1/2

[Event "SixDays Budapest IM-B 10-2024"]
[Site "Budapest"]
[Date "2024.10.03"]
[Round "6.3"]
[White "Horvath, David"]
[Black "Nanditha V"]
[Result "1/2-1/2"]
[ECO "E62"]
[WhiteElo "2327"]
[BlackElo "1903"]
[Annotator "RC"]
[PlyCount "67"]
[EventDate "2024.09.24"]
[EventType "tourn"]
[EventCountry "HUN"]
[SourceTitle "playchess.com"]
[Source "ChessBase"]
[SourceQuality "1"]
[TimeControl "5400+30"]

1. d4 {[%emt 0:00:04]} Nf6 {[%emt 0:00:30]} 2. c4 {[%emt 0:00:06]} g6 {[%emt 0:00:06]} 3. Nf3 {[%emt 0:00:08]} Bg7 {[%emt 0:00:05]} 4. g3 {[%emt 0:00:05]} O-O {[%emt 0:00:05]} 5. Bg2 {[%emt 0:00:03]} d6 {[%emt 0:00:03]} 6. O-O {[%emt 0:00:07]} Nc6 {[%emt 0:00:19]} 7. Nc3 {[%emt 0:00:05]} e5 {[%emt 0:00:04]} 8. dxe5 {[%emt 0:00:12]} dxe5 {[%emt 0:00:45]} 9. Bg5 {[%emt 0:00:06]} Be6 {[%emt 0:00:18]} 10. Qa4 {[%emt 0:01:41]} h6 {[%emt 0:04:30]} 11. Rad1 {[%emt 0:06:05]} Qc8 {[%emt 0:05:39]} 12. Bxf6 {[%emt 0:13:31]} Bxf6 {[%emt 0:00:06]} 13. Nd2 {[%emt 0:00:12]} Nd4 {[%emt 0:01:36]} 14. e3 {[%emt 0:28:01]} Nf5 {[%emt 0:01:03]} 15. Nde4 {[%emt 0:03:15]} Be7 {[%emt 0:03:45]} 16. Nd5 {[%emt 0:12:45]} Bxd5 {[%emt 0:04:05]} 17. Rxd5 {[%emt 0:01:06]} c6 {[%emt 0:01:36]} 18. Rd2 {[%emt 0:04:37]} Qc7 {[%emt 0:00:38]} 19. Rfd1 {[%emt 0:01:40]} Rfd8 {[%emt 0:00:42]} 20. Bh3 {[%emt 0:03:10]} a6 {[%emt 0:01:15]} 21. Qc2 {[%emt 0:12:28]} Rxd2 {[%emt 0:08:45]} 22. Rxd2 {[%emt 0:04:28]} Rd8 {[%emt 0:00:31]} 23. c5 {[%emt 0:01:26]} Qa5 {[%emt 0:06:01]} 24. Rxd8+ {[%emt 0:02:34]} Qxd8 {[%emt 0:01:17]} 25. b4 {[%emt 0:00:24]} Ng7 {[%emt 0:01:09]} 26. Nd2 {[%emt 0:00:48]} f5 {[%emt 0:00:33]} 27. Nb3 {[%emt 0:01:29]} Kf8 {[%emt 0:01:31]} 28. e4 {[%emt 0:01:00]} Qd7 {[%emt 0:01:01]} 29. Na5 {[%emt 0:00:37]} Ne6 {[%emt 0:00:35]} 30. exf5 {[%emt 0:00:49]} Nd4 {[%emt 0:00:08]} 31. Qe4 {[%emt 0:00:15]} gxf5 {[%emt 0:00:05]} 32. Qe3 {[%emt 0:00:32]} Bg5 {[%emt 0:00:21]} 33. Qd3 {[%emt 0:01:00]} Ke7 {[%emt 0:03:31]} 34. Nb3 {[%emt 0:01:22]} 1/2-1/2

[Event "SixDays Budapest IM-B 10-2024"]
[Site "Budapest"]
[Date "2024.10.03"]
[Round "6.3"]
[White "Bhagat Kush"]
[Black "Gatineau, Yovann"]
[Result "*"]
[ECO "E62"]
[WhiteElo "2245"]
[BlackElo "2400"]
[Annotator "RC"]
[PlyCount "20"]
[EventDate "2024.09.24"]
[EventType "tourn"]
[EventCountry "HUN"]
[SourceTitle "playchess.com"]
[Source "ChessBase"]
[SourceQuality "1"]
[TimeControl "5400+30"]

1. d4 {[%emt 0:00:04]} Nf6 {[%emt 0:00:30]} 2. c4 {[%emt 0:00:06]} g6 {[%emt 0:00:06]} 3. Nf3 {[%emt 0:00:08]} Bg7 {[%emt 0:00:05]} 4. g3 {[%emt 0:00:05]} O-O {[%emt 0:00:05]} 5. Bg2 {[%emt 0:00:03]} d6 {[%emt 0:00:03]} 6. O-O {[%emt 0:00:07]} Nc6 {[%emt 0:00:19]} 7. Nc3 {[%emt 0:00:05]} e5 {[%emt 0:00:04]} 8. dxe5 {[%emt 0:00:12]} dxe5 {[%emt 0:00:45]} 9. Bg5 {[%emt 0:00:06]} Be6 {[%emt 0:00:18]} 10. Qa4 {[%emt 0:01:41]} h6 {[%emt 0:04:30]} *

[Event "SixDays Budapest IM-B 10-2024"]
[Site "Budapest"]
[Date "2024.10.03"]
[Round "6.4"]
[White "Md Imran"]
[Black "To, Nhat Minh"]
[Result "1/2-1/2"]
[ECO "A45"]
[WhiteElo "2337"]
[BlackElo "2300"]
[Annotator "TA"]
[PlyCount "47"]
[EventDate "2024.09.24"]
[EventType "tourn"]
[EventCountry "HUN"]
[SourceTitle "playchess.com"]
[Source "ChessBase"]
[SourceQuality "1"]
[TimeControl "5400+30"]

{[%evp 9,47,1,9,0,2,0,0,-8,-7,-16,-14,-18,0,-18,0,0,0,0,14,7,15,15,6,0,0,-12,-6,-44,-43,-68,-68,-63,-55,-94,-91,-85,-20,-24,0,-70]} 1. d4 {[%emt 0:09:02]} Nf6 {[%emt 0:00:08]} 2. Bg5 {[%emt 0:00:06]} d5 {[%emt 0:00:44]} 3. e3 {[%emt 0:00:11]} c5 {[%emt 0:00:20]} 4. Bxf6 {[%emt 0:01:23]} gxf6 {[%emt 0:00:05]} 5. dxc5 {[%emt 0:00:10]} e6 {[%emt 0:00:51]} 6. c4 {[%emt 0:00:04]} dxc4 {[%emt 0:00:12]} 7. Qxd8+ {[%emt 0:00:07]} Kxd8 {[%emt 0:00:05]} 8. Bxc4 {[%emt 0:00:03]} Bxc5 {[%emt 0:00:11]} 9. Nf3 {[%emt 0:00:34]} Ke7 {[%emt 0:01:03]} 10. Ke2 {[%emt 0:00:05]} Nc6 {[%emt 0:00:36]} 11. Rc1 {[%emt 0:00:12]} Bb6 {[%emt 0:00:54]} 12. Nc3 {[%emt 0:00:26]} Ne5 {[%emt 0:01:36]} 13. Nxe5 {[%emt 0:00:45]} fxe5 {[%emt 0:00:01]} 14. a4 {[%emt 0:01:07][%cal Ba2a4,Ba4a5][%mdl 32]} a6 {[%emt 0:00:39]} 15. a5 {[%emt 0:00:22]} Ba7 {[%emt 0:00:16]} 16. Bd3 {[%emt 0:02:04]} Bd7 {[%emt 0:00:39]} 17. b4 {[%emt 0:01:24]} f5 {[%emt 0:01:11]} 18. e4 {[%emt 0:00:59]} Rac8 {[%emt 0:01:35]} 19. exf5 {[%emt 0:01:23]} exf5 {[%emt 0:00:50]} 20. Nd5+ {[%emt 0:00:00]} Kd6 {[%emt 0:00:50]} 21. Ne3 {[%emt 0:01:57]} e4 {[%emt 0:02:34]} 22. Bc4 {[%emt 0:00:31]} Ke5 {[%emt 0:05:59]} ({Black should try} 22... f4 $17 23. Rd1+ Kc7 24. Nd5+ Kb8) 23. Rd1 $11 {[%emt 0:02:44]} Bc6 {[%emt 0:04:20] Prevents Rd5+} 24. Rac1 {[%emt 0:02:06] Weighted Error Value: White=0.10 (very precise) /Black=0.10 (very precise) .  Mistake:       	White=1     	Black=1      Inaccurate:     	White=2     	Black=1      OK:         	White=7     	Black=6      Best:        	White=1     	Black=2} ({Better is} 24. Rab1 $1 $11) 1/2-1/2

[Event "SixDays Budapest IM-B 10-2024"]
[Site "Budapest"]
[Date "2024.10.03"]
[Round "6.5"]
[White "Fodor, Balazs"]
[Black "Nemeth, Zalan"]
[Result "1/2-1/2"]
[ECO "A06"]
[WhiteElo "2240"]
[BlackElo "2211"]
[Annotator "RC"]
[PlyCount "38"]
[EventDate "2024.09.24"]
[EventType "tourn"]
[EventCountry "HUN"]
[SourceTitle "playchess.com"]
[Source "ChessBase"]
[SourceQuality "1"]
[TimeControl "5400+30"]

1. Nf3 {[%emt 0:00:13]} d5 {[%emt 0:04:46]} 2. b3 {[%emt 0:00:43]} Nf6 {[%emt 0:00:27]} 3. Bb2 {[%emt 0:00:11]} c6 {[%emt 0:01:05]} 4. g3 {[%emt 0:00:12]} Bg4 {[%emt 0:00:34]} 5. Bg2 {[%emt 0:00:08]} Nbd7 {[%emt 0:00:05]} 6. O-O {[%emt 0:01:45]} Bxf3 {[%emt 0:00:20]} 7. exf3 {[%emt 0:01:00]} e6 {[%emt 0:11:27]} 8. f4 {[%emt 0:00:43]} Be7 {[%emt 0:00:56]} 9. d3 {[%emt 0:00:09]} O-O {[%emt 0:00:20]} 10. Nd2 {[%emt 0:00:07]} a5 {[%emt 0:00:13]} 11. a3 {[%emt 0:04:26]} b5 {[%emt 0:05:29]} 12. Qe2 {[%emt 0:09:46]} Rb8 {[%emt 0:07:27]} 13. Rfe1 {[%emt 0:09:10]} Bd6 {[%emt 0:08:27]} 14. Nf3 {[%emt 0:05:34]} c5 {[%emt 0:05:12]} 15. Ne5 {[%emt 0:03:21]} Qc7 {[%emt 0:07:23]} 16. Nxd7 {[%emt 0:00:54]} Nxd7 {[%emt 0:01:47]} 17. Qg4 {[%emt 0:01:34]} d4 {[%emt 0:03:03]} 18. a4 {[%emt 0:03:48]} b4 {[%emt 0:03:19]} 19. Qf3 {[%emt 0:06:38]} Rbe8 {[%emt 0:09:28]} 1/2-1/2